Cogmind - Beta 16 @@@ ROGUE MODE // 2025.11.04 @ 21:04:40 Player: Visionary Result: Destroyed by P-60 Hacker with Shock Rifle Performance ------------- Evolutions (3) 1500 Regions Visited (9) 1800 Robots Destroyed (105) 525 Value Destroyed (3265) 3265 Prototype IDs (8) 160 Alien Tech Used (0) 0 Bonus (442) 442 TOTAL SCORE: 7692 Bonus ------- High Alert Combat Kills 95 Follower Combat Kills 47 Aligned with FarCom 300 Cogmind --------- Core Integrity 0/700 Matter 17/300 Energy 66/100 System Corruption 29% Temperature Cool (0) Movement Core (50) Location -7/Factory Parts ------- > --- POWER (2) -------- (None) > --- PROPULSION (4) --- (None) > --- UTILITY (4) ------ Machine Analyzer Visual Processing Unit Terrain Scan Processor > --- WEAPON (3) ------- (None) > --- INVENTORY (5) ---- High-capacity Storage Unit Recoil Stabilizer Energy Filter Heavy EM Pulse Gun Remote Datajack Peak State ------------ > --- POWER ------------ Light Nuclear Core Light Angular Momentum Engine > --- PROPULSION ------- Aluminum Leg Aluminum Leg Carbon-fiber Leg Carbon-fiber Leg > --- UTILITY ---------- Improved Heat Sink Large Storage Unit Machine Analyzer Improved Light Armor Plating > --- WEAPON ----------- Particle Gun Gauss Rifle Flak Gun > --- INVENTORY -------- Light Ion Engine Micro Nuclear Core Aluminum Leg Compact Battery Medium Matter Pod Weight Redist. System Energy Filter Heavy EM Shotgun Particle Gun Assault Rifle Flak Gun Remote Datajack [Rating: 39] Favorites ----------- Power Nuclear Core Engine Light Ion Engine Power Core Nuclear Core Propulsion Aluminum Leg Treads Improved Treads Leg Aluminum Leg Wheel Wheel Flight Unit Xenon Bombardment Thruster Utility Large Storage Unit Device Trap Reconfigurator Storage Large Storage Unit Processor Machine Analyzer Protection Hardened Medium Armor Plating Weapon High-powered Shotgun Energy Gun Particle Gun Ballistic Gun High-powered Shotgun Ballistic Cannon Light Cannon Launcher Improved Concussive RPG Special Weapon Mining Laser Build | -11 -10 -10 -10 -9 -8 -8 -7 -7 -7 ------- Run | Yrd Mat Min Exi Min Mat Sto Fac Was Fac Slots Evolved 6 | . . . . . 4 . 2 . . Power 1 | . . . . . . . 1 . . Propulsion 2 | . . . . . 2 . . . . Utility 2 | . . . . . 1 . 1 . . Weapon 1 | . . . . . 1 . . . . Parts Attached 90 | 6 6 . 1 4 22 12 23 2 14 Power 12 | 1 1 . . 1 3 . 4 . 2 Engine 6 | 1 1 . . . 2 . 2 . . Core 6 | . . . . 1 1 . 2 . 2 Reactor . | . . . . . . . . . . Propulsion 33 | 2 1 . . 2 7 6 7 1 7 Treads 1 | . . . . . . . . . 1 Leg 30 | 2 1 . . 2 7 6 7 1 4 Wheel 1 | . . . . . . . . . 1 Hover . | . . . . . . . . . . Flight 1 | . . . . . . . . . 1 Utility 19 | 1 3 . 1 . 3 2 6 . 3 Device 5 | . . . 1 . 1 . 2 . 1 Storage 3 | 1 1 . . . 1 . . . . Processor 4 | . . . . . . . 2 . 2 Hackware . | . . . . . . . . . . Protection 7 | . 2 . . . 1 2 2 . . Artifact . | . . . . . . . . . . Weapon 26 | 2 1 . . 1 9 4 6 1 2 Energy Gun 10 | 2 . . . . 3 2 3 . . Energy Cannon . | . . . . . . . . . . Ballistic Gun 12 | . 1 . . 1 4 1 2 1 2 Ballistic Cannon 2 | . . . . . 2 . . . . Launcher 1 | . . . . . . . 1 . . Special Weapon 1 | . . . . . . 1 . . . Impact Weapon . | . . . . . . . . . . Slashing Weapon . | . . . . . . . . . . Piercing Weapon . | . . . . . . . . . . Special Melee Weapon . | . . . . . . . . . . Unidentified Prototypes 3 | . . . 1 . . 1 . . 1 Corrupted Parts 1 | . . . . . . . 1 . . System Corruption 1 | . . . . . . . 1 . . Parts Lost 56 | . 3 . . 1 10 10 17 7 8 Power 6 | . 1 . . . . . 3 1 1 Propulsion 19 | . 1 . . . 3 5 4 2 4 Utility 11 | . . . . . 2 2 4 2 1 Weapon 20 | . 1 . . 1 5 3 6 2 2 Highest Loss Streak 16 | . 2 . . 1 4 2 16 6 7 To Critical Strikes 1 | . . . . . . . . 1 . Average Backups 9 | 2 7 9 9 8 11 12 9 7 4 Power 1 | . . 1 1 1 1 1 . 1 . Propulsion 1 | 1 2 3 3 2 1 . . . . Utility 4 | . 1 3 3 3 4 7 4 2 2 Weapon 2 | . 1 2 2 1 3 3 2 2 1 Tool/Special . | . . . . . . . . . . Unused Backups 20 | . 4 . . . 3 1 2 5 5 Power 3 | . 1 . . . 1 . . 1 . Propulsion 4 | . 2 . . . 1 1 . . . Utility 6 | . . . . . . . . 3 3 Weapon 6 | . 1 . . . 1 . 2 1 1 Tool/Special 1 | . . . . . . . . . 1 Average Slot Usage (%) 91 | . 98 100 99 100 95 94 90 49 64 Engine 5 | . 14 14 14 7 4 . 6 2 . Core 4 | . . . . 7 4 8 5 2 5 Leg 29 | . 28 28 28 28 35 32 25 13 13 Device 7 | . . . 6 14 13 7 2 4 5 Storage 8 | . 14 14 14 14 9 9 7 3 . Processor 3 | . . . . . . . 10 7 20 Protection 5 | . 12 14 7 . 1 9 6 2 . Energy Gun 8 | . 15 14 14 1 6 7 14 3 . Ballistic Gun 13 | . 12 14 14 26 12 17 6 5 10 Ballistic Cannon 2 | . . . . . 7 . . . . Peak Build Rating 39 | 6 8 7 15 17 35 37 37 39 35 Average Rating 23 | 3 7 7 10 16 27 31 30 18 26 On Entrance 15 | . 6 7 7 15 17 35 24 37 4 Avg Prop Armor Cover (%) 9 | . . . . . . . . . 9 Naked Turns . | . . . . . . . . . . Heaviest Build 56 | 12 20 20 20 19 45 46 56 49 14 Greatest Support 63 | 20 20 20 20 20 47 47 50 50 63 Greatest Overweight (x) 4 | 3 . . . . . 2 4 1 3 Average Overweight (x) . | . . . . . . . . . . Largest Inventory Capacity 15 | 8 10 10 10 10 15 15 15 15 5 Average Capacity 12 | 7 9 10 10 10 14 15 15 9 5 Most Carried 15 | 4 10 9 10 9 15 15 12 12 5 Average Carried 9 | 2 7 9 8 8 11 12 9 7 4 Final Capacity 15 | 8 10 10 10 10 15 15 15 5 5 Final Carried 14 | 4 9 9 9 9 14 11 12 4 5 Class Distribution -------------------- 57% | Scavenger-Skirmisher 30% | Mutant 6% | Skirmisher 4% | Scavenger-Mutant Dominant Class ---------------- Mutant | -10/Materials Mutant | -10/Mines Mutant | -10/Exiles Mutant | -9/Mines Scavenger-Skirmisher | -8/Materials Scavenger-Skirmisher | -8/Storage Scavenger-Skirmisher | -7/Factory Mutant | -7/Waste Skirmisher | -7/Factory Resources | -11 -10 -10 -10 -9 -8 -8 -7 -7 -7 ----------- Run | Yrd Mat Min Exi Min Mat Sto Fac Was Fac Matter Collected 2768 | 210 228 . . 110 1083 581 543 . 13 Remotely . | . . . . . . . . . . Salvage Created 3767 | . 321 . . 183 1801 1003 446 . 13 Parts 231 | . 18 . . 16 100 68 27 . 2 Haulers Intercepted 7 | . . . . . 2 5 . . . Recyclers Shooed 1 | . . . . . 1 . . . . Parts Field Recycled . | . . . . . . . . . . Retrieved Matter . | . . . . . . . . . . Parts Self-Destructed . | . . . . . . . . . . Prevented . | . . . . . . . . . . Parts Restored . | . . . . . . . . . . Kills | -11 -10 -10 -10 -9 -8 -8 -7 -7 -7 ------- Run | Yrd Mat Min Exi Min Mat Sto Fac Was Fac Combat Hostiles Destroyed 81 | . 10 . . 6 37 20 8 . . Guns 67 | . 10 . . 6 24 20 7 . . Cannons 13 | . . . . . 13 . . . . AOE 1 | . . . . . . . 1 . . Classes Destroyed 16 | . 2 . . . 11 1 1 . 1 Worker 7 | . . . . . 3 2 2 . . Builder 1 | . . . . . 1 . . . . Tunneler 1 | . . . . . . . . . 1 Hauler 7 | . . . . . 2 5 . . . Recycler 3 | . . . . . 3 . . . . Operator 3 | . . . . . . 3 . . . Watcher 2 | . . . . . 1 . 1 . . Swarmer 18 | . 3 . . 3 5 7 . . . Grunt 40 | . 7 . . 3 19 6 5 . . Brawler 1 | . . . . . 1 . . . . Protector 1 | . . . . . 1 . . . . Sentry 14 | . . . . . 7 6 1 . . Specialist 1 | . . . . . 1 . . . . Hunter 4 | . . . . . 2 1 1 . . Programmer 1 | . . . . . . . 1 . . Heavy 1 | . . . . . 1 . . . . Best Kill Streak 8 | . 4 . . 3 6 8 4 . 1 Combat Bots Only 8 | . 4 . . 3 6 8 2 . . Max Kills in Single Turn 2 | . 2 . . 1 2 2 2 . 1 Gunslinging 1 | . 1 . . . . 1 . . . Exploded 1 | . . . . . . . 1 . . Melee . | . . . . . . . . . . Uniques/NPCs Destroyed . | . . . . . . . . . . Combat | -11 -10 -10 -10 -9 -8 -8 -7 -7 -7 -------- Run | Yrd Mat Min Exi Min Mat Sto Fac Was Fac Hostile Shots Fired 680 | . 64 . . 32 198 113 160 8 105 Missed 190 | . 19 . . 8 54 19 39 3 48 Hits 490 | . 45 . . 24 144 94 121 5 57 Melee 9 | . . . . . 4 . . 5 . Projectile 481 | . 45 . . 24 140 94 121 . 57 AOE 4 | . . . . . . . . . 4 Critical Strikes 19 | . . . . . 6 2 4 4 3 Part Disruptions 1 | . . . . . . . . . 1 Damage Taken 7486 | . 543 . . 237 2071 1531 1911 202 991 Core 1314 | . 157 . . 29 282 136 409 70 231 Absorbed by Shields . | . . . . . . . . . . Redirected to Shielding 107 | . 5 . . . . . 102 . . Regen/Repaired (Parts) 475 | . 55 . . . 174 174 72 . . Core Remaining (%) 49 | 100 . . . 25 . 24 . . . Volleys Fired 285 | . 49 . . 16 115 71 28 1 5 Largest 3 | . 2 . . 2 3 3 3 3 2 Hottest 180 | . 90 . . 70 120 150 180 121 53 Shots Fired 743 | . 97 . . 32 342 191 69 3 9 Gun 641 | . 97 . . 32 249 184 67 3 9 Cannon 93 | . . . . . 93 . . . . Launcher 1 | . . . . . . . 1 . . Special 8 | . . . . . . 7 1 . . Kinetic 490 | . 43 . . 27 258 120 31 2 9 Thermal 236 | . 49 . . 5 84 69 28 1 . Explosive 1 | . . . . . . . 1 . . Electromagnetic 16 | . 5 . . . . 2 9 . . Robot Hit Streak 12 | . 12 . . 11 11 9 11 2 6 Robot Miss Streak 8 | . 4 . . 5 8 5 5 1 8 Penetration Max . | . . . . . . . . . . Secondary Targets 5 | . 1 . . 1 1 2 . . . Max Gunslinging Chain 1 | . 1 . . 1 1 1 . . . Shots Hit Robots 451 | . 61 . . 23 207 104 49 2 5 Core Hits 224 | . 21 . . 10 98 51 40 . 4 Critical Kills 1 | . 1 . . . . . . . . Critical Parts Destroyed 2 | . . . . . . 2 . . . Critical Strikes 13 | . 3 . . . 6 4 . . . Burn 7 | . 2 . . . 3 2 . . . Destroy 3 | . 1 . . . . 2 . . . Blast 3 | . . . . . 3 . . . . Melee Attacks . | . . . . . . . . . . Impact . | . . . . . . . . . . Slashing . | . . . . . . . . . . Piercing . | . . . . . . . . . . Sneak Attacks . | . . . . . . . . . . Combat Hostiles . | . . . . . . . . . . Follow-up Attacks . | . . . . . . . . . . Damage Inflicted 7777 | . 783 . . 258 3483 1965 1134 72 82 Guns 6609 | . 783 . . 258 2466 1965 983 72 82 Cannons 1017 | . . . . . 1017 . . . . Explosions 151 | . . . . . . . 151 . . Melee . | . . . . . . . . . . Ramming . | . . . . . . . . . . Kinetic 5418 | . 344 . . 219 2821 1390 508 54 82 Thermal 2138 | . 414 . . 39 662 551 454 18 . Explosive 27 | . . . . . . . 27 . . Electromagnetic 194 | . 25 . . . . 24 145 . . Impact . | . . . . . . . . . . Slashing . | . . . . . . . . . . Piercing . | . . . . . . . . . . Highest Corruption 29 | . . . . . 5 13 2 19 29 Average Corruption 10 | . . . . . 5 8 1 12 20 Corruption Purged . | . . . . . . . . . . Corruption Blocked . | . . . . . . . . . . Effects 98 | . . . . . 2 44 5 10 37 Message Errors 27 | . . . . . . 13 2 1 11 Matter Fused 18 | . . . . . . 7 . 2 9 Heat Flow Errors 7 | . . . . . . 4 1 . 2 Energy Discharges 4 | . . . . . . 2 . . 2 Parts Rejected 3 | . . . . . . 2 . . 1 Data Loss (minor) 12 | . . . . . 1 6 . . 5 Data Loss (major) 6 | . . . . . 1 4 1 . . Misfires 3 | . . . . . . 1 . . 2 Alerts 2 | . . . . . . . . 2 . Misdirections 11 | . . . . . . 1 . 5 5 Weapon Failures 5 | . . . . . . 4 1 . . Overload Shots . | . . . . . . . . . . Overflow Damage 28 | . . . . . . . 28 . . Projectiles . | . . . . . . . . . . Explosions 28 | . . . . . . . 28 . . Melee . | . . . . . . . . . . Knockbacks 19 | . . . . . 19 . . . . Impact . | . . . . . . . . . . Kinetic 16 | . . . . . 16 . . . . Secondary 3 | . . . . . 3 . . . . Self-Inflicted Damage 15 | . . . . . . . 15 . . Shots 1 | . . . . . . . 1 . . Rammed . | . . . . . . . . . . Targets Rammed . | . . . . . . . . . . Kicked . | . . . . . . . . . . Crushed . | . . . . . . . . . . Highest Temperature 531 | . 201 . . 45 394 531 436 24 268 Average Temperature 121 | . 58 . . 18 112 163 129 16 132 Received Heat Transfer 2628 | . 249 . . 54 810 513 981 . 21 Effects 26 | . . . . . 2 20 4 . . Shutdowns 10 | . . . . . 2 6 2 . . Energy Bleed 4 | . . . . . . 3 1 . . Interference 3 | . . . . . . 3 . . . Matter Decay 5 | . . . . . . 5 . . . Short Circuit 1 | . . . . . . . 1 . . Damage (minor) 3 | . . . . . . 3 . . . Siege Activations . | . . . . . . . . . . Martial Activations . | . . . . . . . . . . Shielding Activations . | . . . . . . . . . . Robots Disrupted . | . . . . . . . . . . Combat Hostiles . | . . . . . . . . . . Robots Corrupted . | . . . . . . . . . . Combat Hostiles . | . . . . . . . . . . Parts Fried . | . . . . . . . . . . Impact Corruptions . | . . . . . . . . . . Robots Melted . | . . . . . . . . . . Combat Hostiles . | . . . . . . . . . . Parts Melted 5 | . 2 . . . 2 . 1 . . Heat Transferred 5361 | . 1369 . . 111 1830 1261 753 37 . Parts Sabotaged . | . . . . . . . . . . Parts Stolen . | . . . . . . . . . . Parts Stripped . | . . . . . . . . . . Power Chain Reactions 1 | . . . . . . . 1 . . Alert | -11 -10 -10 -10 -9 -8 -8 -7 -7 -7 ------- Run | Yrd Mat Min Exi Min Mat Sto Fac Was Fac Maximum Alert Level 2 | . . . . . 2 1 . . . Low Security (%) 64 | 100 100 100 . 100 49 . 100 100 100 Level 1 28 | . . . . . 29 99 . . . Level 2 6 | . . . . . 21 . . . . Level 3 . | . . . . . . . . . . Level 4 . | . . . . . . . . . . Level 5 . | . . . . . . . . . . High Security . | . . . . . . . . . . Max Security . | . . . . . . . . . . Peak Influence 531 | . 100 . . 80 531 397 147 18 5 Initial 222 | . . . . . . 222 147 18 . Average 144 | . 22 . . 41 225 294 65 3 . Influence Increases 2683 | . 309 . . 140 1194 686 349 . 5 Destroy 0b10 Robot/C 1660 | . 200 . . 120 780 400 160 . . Destroy 0b10 Robot/NC 130 | . . . . . 60 50 15 . 5 Destroy Leader 460 | . 60 . . 20 208 110 62 . . Allied During Kill 9 | . . . . . 9 . . . . Trap Triggered on 0b10 10 | . 10 . . . . . . . . Successful Hack 118 | . 23 . . . 25 42 28 . . Disable Machine 60 | . . . . . 15 45 . . . Destroy Structure 26 | . 1 . . . 7 9 9 . . Partial Spotted 15 | . . . . . 15 . . . . Lose Combat Pursuer 195 | . 15 . . . 75 30 75 . . Influence Decreases 2683 | . 309 . . 140 665 889 622 53 5 Entered New Map 521 | . . . . . . 307 179 35 . Time Decay 1812 | . 289 . . 130 545 482 343 18 5 Lost Part 330 | . 20 . . 10 100 100 100 . . Lost Ally 20 | . . . . . 20 . . . . Squads Dispatched 26 | . 3 . . . 13 2 4 . 4 Investigation 3 | . 1 . . . 1 . 1 . . Extermination 3 | . . . . . . . 2 . 1 Reinforcement 12 | . 2 . . . 5 2 1 . 2 Assault 1 | . . . . . 1 . . . . Garrison 7 | . . . . . 6 . . . 1 Intercept . | . . . . . . . . . . Searches Triggered . | . . . . . . . . . . Construction Impeded 1 | . . . . . . 1 . . . Haulers Reinforced . | . . . . . . . . . . Active Scanning Responses . | . . . . . . . . . . Cargo Convoy Interrupts . | . . . . . . . . . . Stealth | -11 -10 -10 -10 -9 -8 -8 -7 -7 -7 --------- Run | Yrd Mat Min Exi Min Mat Sto Fac Was Fac Distress Signals 9 | . . . . . 7 1 1 . . Communications Jammed . | . . . . . . . . . . Distress Signals . | . . . . . . . . . . Times Spotted 147 | . 18 . . 6 58 32 21 6 6 Peak Tracking Total 9 | . 4 . . 3 8 5 9 6 4 Tactical Retreats 10 | . 1 . . . 3 2 4 . . Traps | -11 -10 -10 -10 -9 -8 -8 -7 -7 -7 ------- Run | Yrd Mat Min Exi Min Mat Sto Fac Was Fac Traps Triggered 7 | . 1 . . . 1 3 2 . . Indirectly . | . . . . . . . . . . Trap Hack Attempts . | . . . . . . . . . . Triggered . | . . . . . . . . . . Disarmed . | . . . . . . . . . . Reprogrammed 1 | . 1 . . . . . . . . Reused 1 | . 1 . . . . . . . . Traps Reconfigurated 6 | . . . . . 4 2 . . . Traps Extracted . | . . . . . . . . . . Installed . | . . . . . . . . . . Triggered 1 | . 1 . . . . . . . . Machines | -11 -10 -10 -10 -9 -8 -8 -7 -7 -7 ---------- Run | Yrd Mat Min Exi Min Mat Sto Fac Was Fac Machines Disabled 4 | . . . . . 1 3 . . . Max in Single Turn 1 | . . . . . 1 1 . . . Machines Repaired . | . . . . . . . . . . Machines Dismantled . | . . . . . . . . . . Machines Sabotaged . | . . . . . . . . . . Overloaded Fab Kills . | . . . . . . . . . . Hacking | -11 -10 -10 -10 -9 -8 -8 -7 -7 -7 --------- Run | Yrd Mat Min Exi Min Mat Sto Fac Was Fac Machines Accessed 31 | . 7 . . . 9 11 3 . 1 Terminals 23 | . 6 . . . 6 10 1 . . Fabricators . | . . . . . . . . . . Repair Stations 5 | . 1 . . . 1 1 2 . . Recycling Units . | . . . . . . . . . . Scanalyzers 3 | . . . . . 2 . . . 1 Garrison Access . | . . . . . . . . . . Total Hacks 91 | . 21 . . . 31 32 6 . 1 Successful 58 | . 11 . . . 26 18 3 . . Failed 33 | . 10 . . . 5 14 3 . 1 Catastrophic 3 | . 1 . . . . 1 . . 1 Database Lockouts . | . . . . . . . . . . Manual 1 | . . . 1 . . . . . . Terminals 63 | . 19 . . . 15 28 1 . . Fabricators . | . . . . . . . . . . Repair Stations 18 | . 2 . . . 7 4 5 . . Recycling Units . | . . . . . . . . . . Scanalyzers 10 | . . . . . 9 . . . 1 Garrison Access . | . . . . . . . . . . Terminal Hacks 34 | . 9 . . . 10 14 1 . . Record 5 | . 2 . . . 1 2 . . . Prototype ID Bank 2 | . 1 . . . 1 . . . . Open Door 3 | . . . . . . 3 . . . Branch Access Points 1 | . . . . . . 1 . . . Emergency Access Points 1 | . . . . . 1 . . . . Terminal Index 1 | . 1 . . . . . . . . Fabricator Index 1 | . . . . . . 1 . . . Recycling Unit Index 1 | . . . . . . 1 . . . Alert Level 2 | . . . . . 1 1 . . . Locate Traps 4 | . 2 . . . 1 1 . . . Reprogram Traps 1 | . 1 . . . . . . . . Dispatch Records 1 | . 1 . . . . . . . . Maintenance Status 2 | . . . . . 1 1 . . . Transport Status 1 | . . . . . 1 . . . . Investigation Status 1 | . . . . . 1 . . . . Assault Status 1 | . . . . . . 1 . . . Recall Investigation 1 | . . . . . . . 1 . . Hauler Manifests 3 | . 1 . . . 2 . . . . Zone Layout 2 | . . . . . . 2 . . . Fabricator Hacks . | . . . . . . . . . . Repair Station Hacks 15 | . 2 . . . 7 4 2 . . Scan Component 8 | . 1 . . . 4 2 1 . . Repair 7 | . 1 . . . 3 2 1 . . Recycling Unit Hacks . | . . . . . . . . . . Scanalyzer 9 | . . . . . 9 . . . . Insert Component 1 | . . . . . 1 . . . . Analyze 1 | . . . . . 1 . . . . Retrieve Study 7 | . . . . . 7 . . . . Garrison Access Hacks . | . . . . . . . . . . Unauthorized Hacks . | . . . . . . . . . . Terminals . | . . . . . . . . . . Fabricators . | . . . . . . . . . . Repair Stations . | . . . . . . . . . . Recycling Units . | . . . . . . . . . . Scanalyzers . | . . . . . . . . . . Garrison Access . | . . . . . . . . . . Data Cores Recovered 2 | . . . . . . 2 . . . Used . | . . . . . . . . . . Hacking Detections 25 | . 5 . . . 7 9 3 . 1 Full Trace Events . | . . . . . . . . . . Feedback Events . | . . . . . . . . . . Feedback Blocked . | . . . . . . . . . . Robot Schematics Acquired . | . . . . . . . . . . Robots Built . | . . . . . . . . . . Authchips . | . . . . . . . . . . Time . | . . . . . . . . . . Total Robot Build Rating . | . . . . . . . . . . Part Schematics Acquired 1 | . . . . . 1 . . . . Parts Built . | . . . . . . . . . . Authchips . | . . . . . . . . . . Time . | . . . . . . . . . . Total Part Build Rating . | . . . . . . . . . . Part Studies Acquired 7 | . . . . . 7 . . . . Parts Repaired 7 | . 1 . . . 3 2 1 . . Time 232 | . 26 . . . 114 76 16 . . Parts Recycled . | . . . . . . . . . . Recycled Matter . | . . . . . . . . . . Retrieved Matter . | . . . . . . . . . . Retrieved Components . | . . . . . . . . . . Parts Scanalyzed 1 | . . . . . 1 . . . . Part Schematics Acquired 1 | . . . . . 1 . . . . Parts Damaged 1 | . . . . . 1 . . . . Bothacking | -11 -10 -10 -10 -9 -8 -8 -7 -7 -7 ------------ Run | Yrd Mat Min Exi Min Mat Sto Fac Was Fac Used RIF Installer . | . . . . . . . . . . Robots Hacked . | . . . . . . . . . . Non-combat . | . . . . . . . . . . Combat . | . . . . . . . . . . Robot Hacks Applied . | . . . . . . . . . . Relay Couplers Released . | . . . . . . . . . . Fabnet Peak Effective % . | . . . . . . . . . . Robots Rewired . | . . . . . . . . . . Allies Hacked . | . . . . . . . . . . Hacks Repelled . | . . . . . . . . . . Allies | -11 -10 -10 -10 -9 -8 -8 -7 -7 -7 -------- Run | Yrd Mat Min Exi Min Mat Sto Fac Was Fac Total Allies 1 | . . . . 1 . . . . . Largest Group 1 | . . . . 1 1 . . . . Highest-Rated Group 31 | . . . . 31 31 . . . . Highest-Rated Ally 31 | . . . . 31 31 . . . . Total Orders . | . . . . . . . . . . Ally Attacks 8 | . . . . . 8 . . . . Total Damage 107 | . . . . . 107 . . . . Kills 4 | . . . . . 4 . . . . Allies Corrupted . | . . . . . . . . . . Allies Melted . | . . . . . . . . . . Intel | -11 -10 -10 -10 -9 -8 -8 -7 -7 -7 ------- Run | Yrd Mat Min Exi Min Mat Sto Fac Was Fac Active Infowar (turns) 1582 | . . . . . . . 814 154 614 Optics 520 | . . . . . . . . . 520 Terrain 529 | . . . . . . . . . 529 Machine Analysis 1582 | . . . . . . . 814 154 614 Robot Analysis Total . | . . . . . . . . . . Derelict Logs Recovered . | . . . . . . . . . . Drone Launches 2 | . . . . . . . 2 . . Drone Recoveries 2 | . . . . . . . 2 . . Exploration | -11 -10 -10 -10 -9 -8 -8 -7 -7 -7 ------------- Run | Yrd Mat Min Exi Min Mat Sto Fac Was Fac Turns Passed 6766 | 60 1066 62 277 264 2126 1244 817 154 696 Spaces Moved 3825 | 34 662 52 229 170 983 525 377 217 576 Core 297 | 16 . . . . . . . 151 130 Treads 80 | . . . . . . . . . 80 Legs 3434 | 18 662 52 229 170 983 525 377 66 352 Wheels 14 | . . . . . . . . . 14 Hover . | . . . . . . . . . . Flight . | . . . . . . . . . . Fastest Speed 50 | 50 120 120 120 120 97 97 105 50 50 Average Speed 119 | 132 120 120 120 120 114 145 136 68 111 Slowest Speed 385 | 200 120 120 120 120 120 245 385 175 200 Overloaded Moves . | . . . . . . . . . . Propulsion Burnouts . | . . . . . . . . . . Robots Hopped . | . . . . . . . . . . Potential Cave-ins . | . . . . . . . . . . Cave-ins Triggered 1 | . . . . . . 1 . . . Exploration Rate (%) 44 | 3 89 13 61 26 68 79 11 85 13 Regions Visited 9 Branch Regions 4 Pre-discovered Areas . | . . . . . . . . . . Known Exits Taken . | . . . . . . . . . . Unknown Exits Taken 7 | 1 1 1 1 1 1 1 . . . Scrap Searched . | . . . . . . . . . . Spaces Dug 11 | . . . . . . 4 7 . . Terrain Destroyed 18 | . . . . . 4 5 9 . . Melee . | . . . . . . . . . . Projectile 9 | . . . . . 4 5 . . . AOE 9 | . . . . . . . 9 . . Terrain Rammed . | . . . . . . . . . . Walls Destroyed . | . . . . . . . . . . Machines Disabled . | . . . . . . . . . . Actions | -11 -10 -10 -10 -9 -8 -8 -7 -7 -7 --------- Run | Yrd Mat Min Exi Min Mat Sto Fac Was Fac Total 5435 | 49 838 51 232 200 1740 855 629 219 622 Wait 1060 | . 101 . . 4 568 220 161 . 6 Move 3817 | 33 661 51 228 169 982 524 377 216 576 Hop . | . . . . . . . . . . Pick Up 122 | 10 15 . 1 4 34 14 28 . 16 Fast Attach . | . . . . . . . . . . Attach 83 | 6 5 . 1 1 17 13 24 1 15 Detach 2 | . . . 1 . . . 1 . . Swap 32 | . 2 . . 3 12 9 5 1 . Drop 34 | . 5 . 1 3 12 4 5 . 4 Fire 285 | . 49 . . 16 115 71 28 1 5 Melee . | . . . . . . . . . . Ram . | . . . . . . . . . . Kick . | . . . . . . . . . . Crush . | . . . . . . . . . . Escape Stasis . | . . . . . . . . . . Rewire . | . . . . . . . . . . Trap . | . . . . . . . . . . Miscellaneous . | . . . . . . . . . . Route ------- -11/Scrapyard -10/Materials (discovered 3 exits: [*Mat x2] / [*Min]) -10/Mines -10/Exiles -9/Mines -8/Materials (discovered 2 exits: *Fac / *Sto) -8/Storage (discovered 2 exits: *Fac / Rec) -7/Factory -7/Waste -7/Factory History --------- Turn | Location | Event 36 | -11/Scrapyard | Discovered new exit (range 14) 61 | -11/Scrapyard | Entered Materials 303 | -10/Materials | Build established: Mutant 488 | -10/Materials | Discovered new exit (range 14) 538 | -10/Materials | Core integrity fell below 50% 831 | -10/Materials | Discovered new exit (range 4) 924 | -10/Materials | Repaired Lgt. Armor Plating 955 | -10/Materials | Discovered new exit (range 6) 1127 | -10/Materials | Entered Mines 1184 | -10/Mines | Deemed a non-threat by the Exiles lab entrance 1184 | -10/Mines | Discovered new exit (range 5) 1189 | -10/Mines | Entered Exiles 1219 | -10/Exiles | Met 8R-AWN 1241 | -10/Exiles | Met EX-HEX 1276 | -10/Exiles | Met EX-BIN 1289 | -10/Exiles | Aligned with FarCom system 1290 | -10/Exiles | Given EX-Vault access code 1321 | -10/Exiles | Opened EX-Vault 1328 | -10/Exiles | Found Prototype Device 1330 | -10/Exiles | Identified Trap Reconfigurator 1352 | -10/Exiles | Warned to stay clear of 0b10 Research branches 1386 | -10/Exiles | Met EX-DEC 1449 | -10/Exiles | Discovered new exit (range 14) 1466 | -10/Exiles | Left Exiles lab with Trap Reconfigurator 1466 | -10/Exiles | Entered Mines 1703 | -9/Mines | Discovered new exit (range 11) 1718 | -9/Mines | Received a Mining Laser from a helpful Derelict 1730 | -9/Mines | Entered Materials 1730 | -8/Materials | Accompanied by 1 ally 1730 | -8/Materials | Evolved 4 slots: Propulsion x2, Utility x1, Weapon x1 1874 | -8/Materials | Garrison activated, responded to threat 2193 | -8/Materials | Build established: Scavenger-Skirmisher 2671 | -8/Materials | Garrison activated, responded to threat 3039 | -8/Materials | Discovered new exit (range 4) 3433 | -8/Materials | Lost 4 parts (1n3w) 3528 | -8/Materials | Discovered new exit (range 16) 3592 | -8/Materials | Repaired Reaction Control System 3632 | -8/Materials | Repaired Nuclear Core 3672 | -8/Materials | Repaired Hpw. Shotgun+ 3730 | -8/Materials | First assault squad dispatched 3764 | -8/Materials | Core integrity fell below 50% 3856 | -8/Materials | Entered Storage 4233 | -8/Storage | Repaired Nuclear Core+ 4294 | -8/Storage | Repaired Hpw. Shotgun+ 4456 | -8/Storage | Discovered new exit (range 5) 4525 | -8/Storage | Identified exit to Recycling 4531 | -8/Storage | Destroyed 8 combat bots 4803 | -8/Storage | Crushed by falling debris 4803 | -8/Storage | System corruption reached 10% 5100 | -8/Storage | Entered Factory 5100 | -7/Factory | Evolved 2 slots: Power x1, Utility x1 5433 | -7/Factory | Core integrity fell below 50% 5469 | -7/Factory | Lost 16 parts (3p4n3u6w) 5759 | -7/Factory | Repaired Particle Gun 5917 | -7/Factory | Sucked down chute 5917 | -7/Factory | Entered Waste 5932 | -7/Waste | EMP discharged 5932 | -7/Waste | System corruption reached 10% 5940 | -7/Waste | Spotted C-40 Crusher 5955 | -7/Waste | Spotted C-40 Crusher 5956 | -7/Waste | Spotted C-40 Crusher 5961 | -7/Waste | Spotted C-40 Crusher 5968 | -7/Waste | Crushed by Compactor (1 part destroyed, 1 dropped) 5971 | -7/Waste | Crushed by Compactor (1 part destroyed, 1 dropped) 5975 | -7/Waste | Spotted C-40 Crusher 5977 | -7/Waste | Crushed by Compactor (1 part destroyed, 1 dropped) 5982 | -7/Waste | Crushed by Compactor (1 part destroyed, 2 dropped) 6012 | -7/Waste | Spotted C-40 Crusher 6013 | -7/Waste | Lost 6 parts (1p2n1u2w) 6027 | -7/Waste | Crushed by Compactor (1 part destroyed, 1 dropped) 6032 | -7/Waste | EMP discharged 6066 | -7/Waste | Discovered new exit (range 11) 6071 | -7/Waste | Entered Factory 6100 | -7/Factory | Garrison activated, responded to threat 6530 | -7/Factory | Build established: Skirmisher 6650 | -7/Factory | Core integrity fell below 20% 6722 | -7/Factory | Lost 7 parts (1p3n1u2w) 6767 | -7/Factory | Destroyed by P-60 Hacker with Shock Rifle Last Messages --------------- System corrupted: FCS attempts to trigger Hpw. Shotgun+. System corrupted: Hpw. Shotgun+ misfires. Hpw. Shotgun+ destroyed. Carbon-fiber Leg+ destroyed. System corrupted: Matter fused (-9). Imp. Terrain Scanner destroyed. Carbon-fiber Leg+ destroyed. :1IVR>NE,WKDJ,EUBONX>JS Imp. Carbon-fiber Leg destroyed. K/64WZ,NBHN ILWBPYLII>Q|S1J#WGZJEZ> Door malfunctions. Carbon-fiber Leg+ destroyed. System corrupted: Matter fused (-5). ALERT: Hostiles spotted, dispatching reinforcements to Terminal F014. W&GNV:XD/SFUPGPFY49YMOXS ALERT: Potential suspicious activity detected, Programmers report to Factory Zone 3O. ALERT: Suspicious intruders detected, dispatching Cutter reinforcements to area. System corrupted: Energy discharge (-35). Map ----- +----------------------------------------------------+ | ?????????????????????????????????????????????????? | | ?????????????????????????????????????????????????? | | ?????????????????????????????????????????????????? | | ?????????????????????????????????????????????????? | | ?????????????????????????????????????????????????? | | ?????????????????????????????????????????????????? | | ?????????????????????????????????????????????????? | | ?????????????????????????????????????????????????? | | ?????????????????????????????????????????????????? | | ?????????????????????????????????????????????????? | | ?????????????????????????????????????????????????? | | ?????????????????????####????????????????????????? | | ????????????????????# ????????????????????????? | | ????????????????????# ????????????????????????? | | ????????????????????+ ????? +?????????????????? | | ????????????????????# ???? #?????????????????? | | ????????????????????# "?? #?????????????????? | | ????????????????????# "" #?????????????????? | | ????????????????????# """ #?????????????????? | | ????????????????????# """ #?????????????????? | | ????????????????????# """ #?????????????????? | | ????????????????????# ##????????????????? | | ????????????????????# #?????"?"?"??????? | | ????????c????????H??? #?????"?"?"??????? | | ??????????????????????# ??????"?"?"??????? | | ??????????????????????# @ #?# #?????"?"?"??????# | | ??????????????????????# #?# #?????"?"?"??????? | | ??????????????????????# #?# #?"""?"?"?"??????? | | ??"""?????????????????# k #?# #?"""?"?"?"??????? | | ?""R"?????????????????# #?# #?"S??"?"?"????? ? | | ?""?"???????????#######+##/### #?"""?"?"?"????### | | ????????????????# p # #??""?????? ???? | | ????????????????# """ """ # #??????? ?? ?????# | | ????????????????# """ """ # ########+######### | | ???""""""???????# """ """ #g | | ???""""""???????# g#g | | ???""""""???????# """ """ + | | ???""""""???????# """ """ # | | ????????????????# """ """ # | | ????????????????#[ ###+#+#####+######### | | ????????????????# #?# ####?? | | ????????????????# #?# ###### | | ????????????????# #?# #??##? | | ????????????????##############?# """ """ ###### | | ???????????????????????????????# """ """ # | | ???????????????????????????????# """ """ # | | ??????????????????????????????## # | | ???????????????????????????????# """ """ # | | ???????????????????????????????# """ """ # """ | | ???????????????????????????????# """ """ # """ | +----------------------------------------------------+ Best States ------------- Heat Dissipation 48 Energy Generation 27 Energy Capacity 280 Matter Stores 300 Matter Capacity 300 Sight Range 18 Terrain Scan Range 16 Terrain Scan Density 85 Armor Coverage 225 Core Shielding 20 Utility Shielding 33 Weapon Shielding 33 Evasion (%) 63 Targeting Accuracy 5 Recoil Reduction 1 Item Schematics ----------------- Lgt. Nuclear Core | -8/Materials | Scanalyzed Robot Schematics ------------------ None Fabricated ------------ Nothing Repaired ---------- Lgt. Armor Plating | 38% | -10/Materials Reaction Control System | 10% | -8/Materials Nuclear Core | 21% | -8/Materials Hpw. Shotgun | 29% | -8/Materials Nuclear Core | 18% | -8/Storage Hpw. Shotgun | 9% | -8/Storage Particle Gun | 4% | -7/Factory Studied --------- Aluminum Leg | -8/Materials | Hacked Hpw. Shotgun | -8/Materials | Hacked Nuclear Core | -8/Materials | Hacked VSS Leg | -8/Materials | Hacked Carbon-fiber Leg | -8/Materials | Hacked Minigun | -8/Materials | Hacked Mining Laser | -8/Materials | Hacked Alien Tech Used ----------------- None Achievements -------------- Sprinter Unlikely Earthworm Challenges ------------ None Game ------ Seed CoolantWardroneFlakker Manual? 0 Play Time 01:22:30 Cumulative 14.8 hours Start 2025.11.04 @ 17:55:50 End 2025.11.04 @ 21:04:40 Sessions 3 Manual Loads 0 Difficulty Rogue Special Mode None Game No. 20 Rogue 20 Adventurer 0 Explorer 0 Win Type - Total 0 Types 0/0/0/0/0/0/0/0/0/0 Lore% 15 Gallery% 16 Achievement% 14 Wizard Run 0 Options --------- Layout 0 ASCII 0 Keyboard 0 Movement Mouse Keybinds 0 Fullscreen 1 Font 18/SmallcapsGlow Map View 76x50 Zoom Use 0% Tactical HUD 0 Map Filters NONE Filters NONE Steam 1 RUN: 3f484ce4-e75e-460c-a318-533940dd0e09